[Event "CCT Airthings Masters Play-In 2023"]
[Site "Online"]
[Date "2023.02.03"]
[Round "3"]
[White "Grandelius, Nils"]
[Black "Rakhmanov_Aleksandr"]
[Result "0-1"]
[ECO "B01"]
[WhiteElo "2660"]
[BlackElo "2496"]
[Annotator "TA RC"]
[PlyCount "84"]
[EventDate "2023.02.03"]
[EventType "swiss"]
[EventCountry "NET"]
[SourceTitle "playchess.com"]
[Source "ChessBase"]
[SourceQuality "1"]
[TimeControl "600+2"]

{[%evp 9,84,27,55,36,30,52,73,58,50,56,58,52,50,54,55,18,17,8,25,22,37,31,69,76,70,76,60,66,65,64,64,66,70,68,67,44,44,43,55,55,45,42,55,43,43,0,46,0,41,11,15,26,57,43,101,0,50,50,52,0,0,0,0,0,0,0,0,0,0,0,0,0,0,0,0,-29973,-29972]} 1. e4 {[%emt 0:00:03]} d5 {[%emt 0:00:05]} 2. exd5 {[%emt 0:00:03]} Qxd5 {[%emt 0:00:01]} 3. Nc3 {[%emt 0:00:03]} Qd8 {[%emt 0:00:03]} 4. d4 {[%emt 0:00:04]} Nf6 {[%emt 0:00:01]} 5. Bg5 {[%emt 0:00:19]} Bg4 {[%emt 0:00:14]} 6. Be2 {[%emt 0:00:56] B01: Scandinavian Defence.} Bxe2 {[%emt 0:00:05]} 7. Qxe2 {[%emt 0:00:00]} c6 {[%emt 0:00:12]} 8. O-O-O {[%emt 0:00:07] [#] White is better.} Nbd7 $146 {[%emt 0:02:22]} ({Predecessor:} 8... Nd5 9. Ne4 Qc7 10. c4 h6 11. Bd2 Nf4 12. Qe3 g5 13. g3 Ne6 14. Bc3 Bg7 15. d5 cxd5 16. cxd5 f5 17. dxe6 fxe4 18. Qxe4 O-O 19. Ne2 Qc6 20. Qg6 {1-0 Tseitlin,M (2494)-Candela Perez,J (2411) Ubeda op 6th 2001 (4)}) 9. d5 {[%emt 0:01:17]} Qa5 $1 {[%emt 0:00:03][%cal Rc6d5]} 10. Bxf6 $1 {[%emt 0:01:07]} Nxf6 {[%emt 0:00:00]} 11. dxc6 {[%emt 0:00:01]} bxc6 {[%emt 0:00:04]} 12. Qc4 {[%emt 0:00:35]} Rc8 {[%emt 0:00:17]} (12... Qg5+ $2 13. Kb1 Qxg2 14. Nge2 $18) 13. Nf3 {[%emt 0:00:10]} (13. Qa4 {simplifies} Qxa4 14. Nxa4 g6 15. c3) 13... e6 {[%emt 0:00:07]} 14. Rhe1 {[%emt 0:00:20][%cal Oe1e6] Rxe6+! would be deadly.} Be7 {[%emt 0:00:41]} 15. Ne5 $36 {[%emt 0:00:11][%cal Oe5f7][%mdl 2048] Black is under pressure.} Qc5 {[%emt 0:00:41]} 16. Qxc5 {[%emt 0:01:01]} Bxc5 {[%emt 0:00:00]} 17. Ne4 {[%emt 0:00:01]} Nxe4 {[%emt 0:00:48]} 18. Rxe4 {[%emt 0:00:00]} Bxf2 {[%emt 0:00:35] [#]} 19. Nxf7 $1 {[%emt 0:00:27][%mdl 64] Discovered Attack} Kxf7 {[%emt 0:00:04]} 20. Rf1 {[%emt 0:00:16]} Ke7 {[%emt 0:00:12] White must now prevent ...Rhf8.} 21. Rxf2 $14 {[%emt 0:00:01][%mdl 4096] Endgame KRR-KRR} Rhf8 {[%emt 0:00:05]} 22. Ref4 {[%emt 0:00:37]} (22. Rfe2 $5 {[%cal Re4e6]}) 22... Rf6 {[%emt 0:00:51]} 23. R2f3 {[%emt 0:00:51]} Rd8 {[%emt 0:01:05]} 24. Rxf6 {[%emt 0:00:25]} gxf6 {[%emt 0:00:02] KR-KR} 25. Rh3 {[%emt 0:00:00]} Rh8 {[%emt 0:00:11]} 26. Ra3 {[%emt 0:00:03]} Ra8 {[%emt 0:00:05]} 27. Rh3 {[%emt 0:00:58]} (27. Rg3 $5 {[%cal Rg3g7]}) 27... Rh8 {[%emt 0:00:02]} 28. Ra3 {[%emt 0:00:00]} Ra8 {[%emt 0:00:01]} 29. Ra6 {[%emt 0:00:00]} Kd6 {[%emt 0:00:13]} 30. b4 {[%emt 0:00:01]} Kd5 {[%emt 0:00:18]} 31. Kd2 {[%emt 0:00:34]} e5 {[%emt 0:00:05]} (31... Rb8 $14) 32. a4 {[%emt 0:00:13]} (32. Kd3 $16) 32... Rb8 {[%emt 0:00:07] Against c4+} ({Better is} 32... f5 $11) 33. c3 $1 {[%emt 0:00:07]} Rb7 {[%emt 0:00:03]} 34. Ra5+ {[%emt 0:00:02]} (34. Kd3 $14) 34... Kd6 $11 {[%emt 0:00:20]} 35. Kd3 {[%emt 0:00:01]} f5 {[%emt 0:00:01]} 36. Ra6 {[%emt 0:00:01]} h5 {[%emt 0:00:18]} 37. b5 {[%emt 0:00:05]} Rb6 {[%emt 0:00:21]} 38. Rxa7 {[%emt 0:00:08] c4 is the strong threat.} cxb5 {[%emt 0:00:01]} 39. axb5 {[%emt 0:00:05]} Rxb5 {[%emt 0:00:00]} 40. Rh7 {[%emt 0:00:03]} e4+ {[%emt 0:00:09]} 41. Ke3 {[%emt 0:00:01]} Rc5 {[%emt 0:00:00]} 42. Rxh5 $2 {[%emt 0:00:04][%mdl 8192] [#]} (42. Kf4 $11) 42... f4+ $1 {[%emt 0:00:01][%mdl 64] Discovered Attack.   Weighted Error Value: White=0.28 (precise) /Black=0.09 (flawless)} ({Weaker is} 42... Rxc3+ 43. Kf4 $11) 0-1

[Event "CCT Airthings Masters Play-In 2023"]
[Site "Online"]
[Date "2023.02.03"]
[Round "3"]
[White "Duhless"]
[Black "promen"]
[Result "1-0"]
[ECO "D03"]
[WhiteElo "2647"]
[BlackElo "2533"]
[Annotator "TA"]
[PlyCount "75"]
[EventDate "2023.02.03"]
[EventType "swiss"]
[EventCountry "NET"]
[SourceTitle "playchess.com"]
[Source "ChessBase"]
[SourceQuality "1"]
[TimeControl "600+2"]

{[%evp 9,75,-16,0,0,0,0,0,-40,-40,-44,-7,0,-2,-46,-51,-73,19,-5,15,-45,-9,-109,38,0,0,0,0,0,0,-143,-146,-158,-170,-250,-289,-290,-159,-134,222,232,227,224,226,215,221,210,214,177,179,130,380,395,393,383,398,393,408,381,343,339,1452,1429,29976,29977,29977,29977,29976,29977]} 1. d4 {[%emt 0:00:03]} d5 {[%emt 0:00:05]} 2. Nf3 {[%emt 0:00:03]} Nf6 {[%emt 0:00:01]} 3. Bg5 {[%emt 0:00:01]} Ne4 {[%emt 0:00:04]} 4. Bh4 {[%emt 0:00:02]} Qd6 {[%emt 0:00:02]} 5. c4 {[%emt 0:00:02]} Qb4+ {[%emt 0:00:43]} 6. Nbd2 {[%emt 0:00:02] D03: 1 d4 d5 2 Nf3 Nf6 3 Bg5, including Torre Attack with early ...d5.} Qxb2 {[%emt 0:00:12]} (6... dxc4 7. e3 $14) 7. Rb1 {[%emt 0:02:49]} Qxa2 {[%emt 0:01:00] [#]} 8. Qc1 $146 {[%emt 0:00:03] Ra1 would be deadly. The position is equal.} (8. Ra1 $5 Qb2 $8 9. e3 $11) ({Predecessor:} 8. e3 e6 9. Ra1 Qb2 10. Rb1 Qa2 11. Ra1 Qb2 12. Rb1 Qa3 13. Ra1 Qb2 14. Rb1 {½-½ Grischuk,A (2745)-Sjugirov,S (2712) Krasnogorsk Blitz 2023 (4)}) 8... Qa5 {[%emt 0:00:44][%cal Oe7e5]} 9. cxd5 {[%emt 0:00:12]} Qxd5 {[%emt 0:00:55]} 10. e3 {[%emt 0:00:03]} Nxd2 {[%emt 0:00:04]} 11. Nxd2 {[%emt 0:00:04]} c6 {[%emt 0:00:08]} 12. Be2 {[%emt 0:01:02]} e6 {[%emt 0:01:42]} (12... Qxg2 $17 13. Bf3 Qg6) 13. O-O {[%emt 0:00:11][%mdl 1024] White has compensation.} (13. Bf3 $5 {[%cal Rf3d5]} Qd7 14. Nc4 $11) 13... Qd7 {[%emt 0:00:21]} 14. Ne4 {[%emt 0:01:24]} (14. Nc4 $11) 14... b6 {[%emt 0:00:03]} 15. Qc3 {[%emt 0:00:55]} (15. Bf6 $1 $11 {was the only way to keep the balance.}) 15... Be7 {[%emt 0:01:04] [#]} (15... Ba6 $17 16. Rfe1 Bxe2 17. Rxe2 Na6) 16. d5 $1 {[%emt 0:00:04][%mdl 64] Discovered Attack} Bxh4 {[%emt 0:00:22]} 17. Qxg7 {[%emt 0:00:04]} Rf8 {[%emt 0:00:03]} 18. dxc6 {[%emt 0:00:03]} Qc7 {[%emt 0:00:18]} (18... Qxc6 $2 19. Bb5 Be7 20. Bxc6+ Nxc6 21. Rfd1 $18) 19. Rfd1 {[%emt 0:00:23]} (19. Rbc1 $11) 19... Be7 $17 {[%emt 0:00:03]} (19... Qxc6 $2 20. Bb5 Be7 21. Nd6+ Bxd6 22. Bxc6+ Nxc6 23. Rxd6 $18) (19... Nxc6 20. Nd6+ Ke7 21. Rbc1 $14 (21. Qxh7 Bf6 $14)) 20. Rbc1 {[%emt 0:00:11] And now Nf6+ would win.} Nxc6 {[%emt 0:00:34]} 21. Bb5 {[%emt 0:01:18]} (21. Ng5 $142 Bxg5 22. Rxc6 Qxc6 23. Qxg5) 21... Bb7 $19 {[%emt 0:00:03]} 22. Qg3 {[%emt 0:00:52] [#]} Qxg3 {[%emt 0:00:32]} ({Better is} 22... Rc8 $1 $19 {aiming for ...Qxg3.} 23. Nd6+ Bxd6 24. Rxd6 Ke7) 23. Rxc6 $17 {[%emt 0:00:02][%cal Rc6c8] [#]} f5 $1 {[%emt 0:00:02][%mdl 8192]} 24. Rc7+ $40 {[%emt 0:00:39][%mdl 128] White is out for blood.} (24. Nxg3 $2 Bxc6 25. Bxc6+ Kf7 26. Bxa8 Rxa8 $19) 24... Kf7 {[%emt 0:00:02]} 25. Rxe7+ {[%emt 0:00:08][%mdl 64] Decoy} (25. fxg3 $2 Bxe4 26. Rdd7 Rfe8 $19) (25. Nxg3 $6 Bc8 $16) 25... Kxe7 {[%emt 0:00:10]} 26. Rd7+ {[%emt 0:00:02][%mdl 64] Skewer, Double Attack} (26. Nxg3 $2 Rfd8 27. Rb1 a6 $19) 26... Ke8 {[%emt 0:00:08]} 27. Rxb7+ {[%emt 0:00:01]} (27. Nxg3 $2 {too greedy.} a6 28. Rxb7+ axb5 $19) 27... Kd8 {[%emt 0:00:01]} 28. Nxg3 {[%emt 0:00:03][%cal Og3h5]} a6 {[%emt 0:00:08]} 29. Bc4 {[%emt 0:00:01]} (29. Bc6 $18) 29... b5 $2 {[%emt 0:00:16] This costs Black the game.} (29... Re8 $16 {keeps fighting.}) 30. Bxe6 {[%emt 0:00:02] Strongly threatening Rd7+.} Rf6 {[%emt 0:00:02]} 31. Bxf5 {[%emt 0:00:07]} a5 {[%emt 0:00:01]} 32. Rxb5 {[%emt 0:00:02]} a4 {[%emt 0:00:01]} 33. Rd5+ {[%emt 0:00:06]} Kc7 {[%emt 0:00:03]} 34. Rc5+ {[%emt 0:00:01]} ({Much less strong is} 34. Bxh7 Rd8 35. Rxd8 Kxd8) 34... Rc6 $2 {[%emt 0:00:03]} (34... Kb6) 35. Rxc6+ {[%emt 0:00:01]} Kxc6 {[%emt 0:00:01]} 36. Be4+ {[%emt 0:00:00] White mates.} ({Not} 36. Bxh7 a3 37. Be4+ Kd6 38. Bxa8 a2 $16) 36... Kd6 {[%emt 0:00:12]} 37. Bxa8 {[%emt 0:00:02]} a3 {[%emt 0:00:00]} 38. Ne4+ {[%emt 0:00:01] Beautiful play by Duhless!   Weighted Error Value: White=0.30/Black=0.63} 1-0

[Event "CCT Airthings Masters Play-In 2023"]
[Site "Online"]
[Date "2023.02.03"]
[Round "3"]
[White "ChristopherYoo"]
[Black "Mitrabha, Guha"]
[Result "0-1"]
[ECO "B16"]
[WhiteElo "2645"]
[BlackElo "2510"]
[Annotator "TA"]
[PlyCount "96"]
[EventDate "2023.02.03"]
[EventType "swiss"]
[EventCountry "NET"]
[SourceTitle "playchess.com"]
[Source "ChessBase"]
[SourceQuality "1"]
[TimeControl "600+2"]

{[%evp 13,96,27,46,18,48,46,45,42,62,31,65,35,47,16,16,-53,-59,-41,-54,-96,-96,-92,-96,-186,-98,-88,-108,-99,-69,-82,-82,-84,-81,-135,-135,-110,-32,-108,-109,-292,-308,-293,-306,-294,-304,-377,-376,-391,-385,-419,-410,-397,-373,-765,-743,-712,-697,-615,-601,-6053,-3965,-29978,-29979,-29983,-29983,-29982,-29983,-29986,-29973,-29981,-29982,-29982,-29983,-29985,-29985,-29987,-2668,-1547,-962,-29975,-29976,-29974,-29974,-29977,-29978]} 1. e4 {[%emt 0:00:03]} c6 {[%emt 0:00:04]} 2. d4 {[%emt 0:00:05]} d5 {[%emt 0:00:01]} 3. Nc3 {[%emt 0:00:06]} dxe4 {[%emt 0:00:02]} 4. Nxe4 {[%emt 0:00:00]} Nf6 {[%emt 0:00:00]} 5. Nxf6+ {[%emt 0:00:04]} gxf6 {[%emt 0:00:01]} 6. Be3 {[%emt 0:00:19]} Bf5 {[%emt 0:00:06]} 7. Bd3 {[%emt 0:00:03]} Nd7 {[%emt 0:00:05]} 8. Ne2 {[%emt 0:00:09] B16: Caro-Kann: Bronstein-Larsen Variation.} (8. c3 $5 {[%cal Rd3f5]} Bxd3 9. Qxd3 $14) 8... e6 {[%emt 0:00:04]} 9. O-O {[%emt 0:00:30] And now Bxf5 would win.} Bg6 {[%emt 0:00:04]} 10. c4 {[%emt 0:00:16][%cal Bc2c4,Bc4c5][%mdl 32] White is slightly better.} Bd6 {[%emt 0:00:03][%cal Bf8d6,Bd6c7,Bc7e5][%mdl 32] [#]} 11. Nc3 $146 {[%emt 0:00:09]} ({Predecessor:} 11. Rc1 Qc7 12. f4 f5 13. Qa4 O-O 14. Kh1 Rfe8 15. Ng3 Rad8 16. Qd1 Nf6 17. Qf3 {1-0 Dreckmeier,D-Mussgnug,O Werther Schloss op 3rd 1997 (4)}) 11... O-O {[%emt 0:00:05]} 12. c5 {[%emt 0:00:21]} Bc7 {[%emt 0:00:07]} 13. b4 {[%emt 0:00:14]} f5 {[%emt 0:00:13]} 14. Qf3 {[%emt 0:01:17] [#] Inhibits f4.} ({White should try} 14. Ne2 $11) 14... Ne5 $1 $15 {[%emt 0:00:13]} 15. dxe5 {[%emt 0:00:16] Hoping for Bf4.} Qxd3 {[%emt 0:00:01]} 16. Rac1 {[%emt 0:00:17]} Bxe5 {[%emt 0:00:27] ...f4 would be deadly.} 17. Rfd1 {[%emt 0:00:20]} Qc4 {[%emt 0:00:04]} 18. b5 {[%emt 0:01:02] [#]} Qg4 {[%emt 0:03:36]} ({Worse is} 18... Bxc3 19. bxc6 bxc6 20. Bf4 $11) ({Not} 18... cxb5 19. Nd5 Qh4 20. Nf4 $17) (18... Qh4 $1 $19 {[%cal Rh4h2]} 19. g3 Bh5 {[%mdl 64] Skewer}) 19. bxc6 $17 {[%emt 0:00:11]} bxc6 {[%emt 0:00:05]} (19... Qxf3 {simplifies} 20. gxf3 bxc6 21. Ne2 Bh5) 20. Ne2 {[%emt 0:01:18]} Qxf3 {[%emt 0:00:30]} (20... Rfd8 {is more complex.} 21. h3 Qxf3 22. gxf3 Bh5) 21. gxf3 {[%emt 0:00:02]} Bh5 {[%emt 0:00:01]} 22. Kg2 {[%emt 0:00:07]} Kh8 {[%emt 0:00:10]} 23. Bd4 {[%emt 0:00:36]} ({White should play} 23. Rc4) 23... Rg8+ {[%emt 0:00:08]} 24. Kf1 {[%emt 0:00:08]} f6 {[%emt 0:01:53] Black is more active.} (24... Bxd4 $1 $17 25. Nxd4 Rac8) 25. Rd3 {[%emt 0:00:05]} ({Better is} 25. f4 $1 $15 Bxd4 26. Rxd4) 25... Rad8 {[%emt 0:00:28]} (25... Bxh2 $2 26. Bxf6+ Rg7 27. Rd7 Bxf3 28. Rxg7 $18) 26. Ng3 $2 {[%emt 0:01:41] This costs White the game.} (26. Nf4 $17 {is a better defense.} Bf7 27. Bxe5 fxe5 28. Rcd1 Rxd3 29. Nxd3) 26... Rxg3 $19 {[%emt 0:01:18]} ({Stronger than} 26... Rxd4 27. Rxd4 Bxd4 28. Nxh5 $17) 27. Bxe5 {[%emt 0:00:10]} Rxd3 {[%emt 0:00:02]} 28. Bxg3 {[%emt 0:00:10]} Bxf3 {[%emt 0:00:05][%mdl 4096] Endgame KRB-KRB} 29. Bd6 {[%emt 0:00:04]} e5 {[%emt 0:00:05]} 30. Ke1 {[%emt 0:00:04]} Kg7 {[%emt 0:00:02]} 31. Bc7 {[%emt 0:00:11]} f4 {[%emt 0:00:05]} 32. a4 {[%emt 0:00:12]} Kg6 {[%emt 0:00:05]} 33. a5 $2 {[%emt 0:00:11]} (33. Ba5) 33... a6 {[%emt 0:00:02]} 34. Bd6 {[%emt 0:00:09]} Kf5 {[%emt 0:00:02] White must now prevent ...e4.} 35. Be7 {[%emt 0:00:01]} h5 {[%emt 0:00:02]} 36. h4 {[%emt 0:00:02]} Bg4 {[%emt 0:00:03] Strongly threatening ...e4.} 37. Ra1 {[%emt 0:00:06]} e4 {[%emt 0:00:02]} 38. Kf1 {[%emt 0:00:06]} e3 {[%emt 0:00:06]} 39. fxe3 {[%emt 0:00:01]} fxe3 {[%emt 0:00:00]} 40. Re1 {[%emt 0:00:00]} Ke5 {[%emt 0:00:06]} 41. Bd6+ {[%emt 0:00:05]} Ke4 {[%emt 0:00:01]} 42. Kg2 {[%emt 0:00:02]} f5 {[%emt 0:00:01]} 43. Ra1 {[%emt 0:00:09]} Rd4 {[%emt 0:00:07]} 44. Kg3 {[%emt 0:00:02]} Kd5 {[%emt 0:00:10]} (44... e2 $142 45. Re1 Ke3 46. Rb1 Rd1 47. Bf4+ Kd4 48. Rb4+ Kc3 49. Bd2+ Rxd2 50. Rb1 Rd1 51. Rb7 f4+ {[%mdl 64] Promotion} 52. Kxf4 e1=Q 53. Kg5 Qe6 54. Rb3+ Kxb3 55. Kf4 Qf6+ 56. Kg3 Qf3+ 57. Kh2 Qh3#) 45. Re1 {[%emt 0:00:03]} e2 {[%emt 0:00:01]} 46. Bf4 {[%emt 0:00:04]} Rd1 {[%emt 0:00:06] Black mates.} 47. Kf2 {[%emt 0:00:02]} Kxc5 {[%emt 0:00:02]} 48. Bg3 {[%emt 0:00:01]} Kd4 {[%emt 0:00:03] Weighted Error Value: White=0.80/Black=0.24 (precise)} 0-1

[Event "CCT Airthings Masters Play-In 2023"]
[Site "Online"]
[Date "2023.02.03"]
[Round "3"]
[White "Jospem"]
[Black "gmjlh"]
[Result "0-1"]
[ECO "C47"]
[WhiteElo "2639"]
[BlackElo "2516"]
[Annotator "TA"]
[PlyCount "100"]
[EventDate "2023.02.03"]
[EventType "swiss"]
[EventCountry "NET"]
[SourceTitle "playchess.com"]
[Source "ChessBase"]
[SourceQuality "1"]
[TimeControl "600+2"]

{[%evp 9,99,0,0,-21,-25,-37,-29,-32,0,0,0,-47,-40,-42,0,0,0,0,0,0,-7,0,0,-8,0,-2,-2,0,0,0,8,19,47,0,47,24,78,66,66,70,65,84,202,203,206,194,175,-125,-125,-204,-204,-220,-100,-99,-95,-224,-228,-220,-220,-273,-202,-202,-202,-216,-214,-216,-216,-215,-203,-203,-204,-226,-219,-246,-240,-231,-222,-243,-215,-29980,-29978,-29995,-29996,-29996,-29997,-29997,-29997,-29997,-29998,-29998,-29999,-29999]} 1. e4 {[%emt 0:00:03]} e5 {[%emt 0:00:06]} 2. Nf3 {[%emt 0:00:01]} Nc6 {[%emt 0:00:02]} 3. Nc3 {[%emt 0:00:01]} Nf6 {[%emt 0:00:02]} 4. h3 {[%emt 0:00:01]} Bb4 {[%emt 0:00:04]} 5. Nd5 {[%emt 0:00:08]} Bc5 {[%emt 0:00:01]} 6. c3 {[%emt 0:00:19] C47: Scotch Four Knights and Four Knights with 4 g3.} Nxe4 {[%emt 0:00:37]} 7. d4 {[%emt 0:00:04]} exd4 $1 {[%emt 0:00:07]} 8. cxd4 {[%emt 0:01:35] [#] Black has an edge.} Bb4+ $146 {[%emt 0:00:40]} ({Predecessor:} 8... Bb6 9. Bd3 Ba5+ 10. Kf1 Nd6 11. Bf4 O-O 12. Bxh7+ Kxh7 13. Ng5+ Kg8 14. Qh5 Qxg5 15. Bxg5 f6 16. h4 Nxd4 17. Ne7# {1-0 Krutko,A (2397)-Terletsky,O (2246) Titled Tuesday intern op 27th Oct blitz 2020 (3)}) 9. Nxb4 {[%emt 0:00:04]} Nxb4 {[%emt 0:00:00]} 10. a3 {[%emt 0:00:23]} (10. Qb3 $11 c5 11. Be2) 10... Nd5 $15 {[%emt 0:00:24]} 11. Bd3 {[%emt 0:00:02]} Ndf6 {[%emt 0:00:03] Excellent horsemanship.} 12. O-O {[%emt 0:00:10][%cal Od4d5]} d5 {[%emt 0:00:06]} 13. Qc2 {[%emt 0:00:22]} O-O {[%emt 0:00:04]} 14. Ne5 {[%emt 0:00:04]} h6 {[%emt 0:00:12]} 15. Bf4 {[%emt 0:00:11]} c6 {[%emt 0:00:13]} 16. Rae1 {[%emt 0:00:05]} Qb6 {[%emt 0:01:05]} 17. Be3 {[%emt 0:00:44]} Nd6 {[%emt 0:00:33]} 18. b3 {[%emt 0:00:50]} Nfe4 {[%emt 0:00:11]} 19. g4 $1 {[%emt 0:00:53] Repels Nf5} Qd8 {[%emt 0:01:39]} 20. f3 {[%emt 0:00:10]} Ng5 {[%emt 0:00:16]} 21. Qg2 {[%emt 0:00:48]} (21. h4 $1 $14 {was preferrable.} Ne6 22. h5 (22. Bh7+ Kh8 $11)) 21... f5 {[%emt 0:00:09]} (21... Nh7 $11) 22. Ng6 {[%emt 0:00:32]} Re8 {[%emt 0:00:27]} (22... Rf6 $11 23. Bxg5 hxg5 24. gxf5 Bxf5 25. Ne7+ Kf7 26. Nxf5 Nxf5) 23. h4 $1 $16 {[%emt 0:00:28]} Ngf7 {[%emt 0:00:16]} 24. g5 $1 {[%emt 0:00:02] Dodges Qf6} hxg5 {[%emt 0:00:25]} 25. hxg5 {[%emt 0:00:02]} f4 {[%emt 0:00:13]} 26. Bxf4 $18 {[%emt 0:00:40]} Bf5 {[%emt 0:00:02] Black is weak on the dark squares} 27. Bxf5 {[%emt 0:01:09]} Nxf5 {[%emt 0:00:02]} 28. Ne5 $2 {[%emt 0:00:14]} ({White should try} 28. Qh3 $1 $18 {[%cal Rh3f5]} Nxd4 29. Kf2) 28... Qb6 $1 $36 {[%emt 0:00:08][%mdl 2048] Black is in control.} (28... Nxd4 $2 29. Nxf7 Qd7 30. Be5 Qxf7 31. g6 $18) 29. Qf2 {[%emt 0:00:01]} (29. Qh2 $17 {might work better.}) 29... Qxd4 $19 {[%emt 0:00:12]} (29... Nxd4 30. Kg2 Ne6 31. Bd2) 30. Ng6 {[%emt 0:00:00][%cal Og6e7]} Rxe1 {[%emt 0:00:13]} (30... Nh8 $19 {is more deadly.} 31. Ne7+ Kf7) 31. Rxe1 $17 {[%emt 0:00:01] Threatens to win with Ne7+.} Kh7 $1 {[%emt 0:00:15][%cal Bg8h7,Bh7h6,Bh6g6,Bg6f7][%mdl 32]} 32. Ne7 {[%emt 0:00:08] Loses the game.} (32. Qxd4 $17 Nxd4 33. Nh4) 32... Qxf4 $19 {[%emt 0:00:36]} 33. g6+ {[%emt 0:00:00]} Kh6 $1 {[%emt 0:00:02]} 34. Nxf5+ {[%emt 0:00:01]} Qxf5 {[%emt 0:00:03]} 35. gxf7 {[%emt 0:00:00][%mdl 4096] Endgame [#] KQR-KQR} Rf8 {[%emt 0:00:21]} (35... Qg6+ 36. Kf1 Qxf7 37. Qh2+ Kg6 38. Qc2+ Qf5 39. Re6+ Kg5 40. Qd2+ Kh4 41. Qe1+ Kh3 42. Kf2 $18) 36. Qh2+ {[%emt 0:00:14]} Kg6 {[%emt 0:00:05]} 37. Re5 {[%emt 0:00:16] [#]} Qb1+ $1 {[%emt 0:00:06]} ({Don't play} 37... Qxf3 38. Re2 $18) 38. Kf2 {[%emt 0:00:01] Threatening mate with Qh5+.} Qb2+ {[%emt 0:00:10]} (38... Rxf7 $2 {is a self mate.} 39. Qh5+ Kf6 40. Qg5#) 39. Re2 {[%emt 0:00:00]} Qd4+ {[%emt 0:00:01]} ({Inferior is} 39... Qxa3 40. Qf4 Rxf7 41. Qg4+ Kh6 42. Qh3+ Kg6 43. Qg4+ Kh7 44. Qh3+ Kg8 45. Re8+ Rf8 46. Qe6+ Kh8 47. Qh3+ Kg8 48. Qe6+ Kh8 49. Qh3+ Kg8 $11) 40. Re3 {[%emt 0:00:02] Qd6+ would be deadly.} Kxf7 {[%emt 0:00:16] Hoping for ...Re8.} 41. Qc7+ {[%emt 0:00:00]} Kg8 {[%emt 0:00:01] ...Re8 is the strong threat.} 42. Qe7 {[%emt 0:00:11] Inhibits Re8.} Qb2+ {[%emt 0:00:12]} 43. Kg3 {[%emt 0:00:01]} Qf6 {[%emt 0:00:03]} 44. Qxb7 $2 {[%emt 0:00:03]} (44. Qxf6 $19 gxf6 45. Re7) 44... d4 {[%emt 0:00:08] Black mates.} 45. Re7 {[%emt 0:00:16]} Qxf3+ {[%emt 0:00:03]} 46. Kh2 {[%emt 0:00:00]} Qf2+ {[%emt 0:00:02]} 47. Kh1 {[%emt 0:00:00]} Qf1+ {[%emt 0:00:01]} 48. Kh2 {[%emt 0:00:00]} Rf2+ {[%emt 0:00:01]} 49. Kg3 {[%emt 0:00:00]} Rg2+ {[%emt 0:00:01]} 50. Kh3 {[%emt 0:00:00]} Qh1# {[%emt 0:00:01] Artfully played by gmjlh.   Weighted Error Value: White=0.37/Black=0.13 (very precise)} 0-1

[Event "CCT Airthings Masters Play-In 2023"]
[Site "Online"]
[Date "2023.02.03"]
[Round "3"]
[White "GadimbayliA"]
[Black "SalgadoChess91"]
[Result "1-0"]
[ECO "C07"]
[WhiteElo "2629"]
[BlackElo "2506"]
[Annotator "NA"]
[PlyCount "55"]
[EventDate "2023.02.03"]
[EventType "swiss"]
[EventCountry "NET"]
[SourceTitle "playchess.com"]
[Source "ChessBase"]
[SourceQuality "1"]
[TimeControl "600+2"]

1. e4 {[%emt 0:00:04]} e6 {[%emt 0:00:04]} 2. d4 {[%emt 0:00:01]} d5 {[%emt 0:00:01]} 3. Nd2 {[%emt 0:00:00]} c5 {[%emt 0:00:02]} 4. exd5 {[%emt 0:00:01]} Qxd5 {[%emt 0:00:02]} 5. dxc5 {[%emt 0:00:01]} Nf6 {[%emt 0:00:03]} 6. Ngf3 {[%emt 0:00:01]} Qxc5 {[%emt 0:00:01]} 7. Bd3 {[%emt 0:00:03]} Qc7 {[%emt 0:00:03]} 8. O-O {[%emt 0:00:07]} Nbd7 {[%emt 0:00:03]} 9. b3 {[%emt 0:00:04]} b6 {[%emt 0:00:01]} 10. Bb2 {[%emt 0:00:00]} Bb7 {[%emt 0:00:01]} 11. Qe2 {[%emt 0:00:01]} Be7 {[%emt 0:00:03]} 12. Ne5 {[%emt 0:00:18]} Nxe5 {[%emt 0:00:12]} 13. Bxe5 {[%emt 0:00:00]} Bd6 {[%emt 0:00:14]} 14. f4 {[%emt 0:02:53]} h5 {[%emt 0:02:44]} 15. Nc4 {[%emt 0:00:37]} Bc5+ {[%emt 0:00:09]} 16. Kh1 {[%emt 0:00:01]} Qc6 {[%emt 0:00:07]} 17. Nd6+ {[%emt 0:00:02]} Ke7 {[%emt 0:00:24]} 18. Nxb7 {[%emt 0:00:08]} Qxb7 {[%emt 0:00:03]} 19. Bxf6+ {[%emt 0:00:46]} gxf6 {[%emt 0:00:03]} 20. Be4 {[%emt 0:00:00]} Qc8 {[%emt 0:00:05]} 21. Bxa8 {[%emt 0:00:03]} Qxa8 {[%emt 0:00:00]} 22. Rad1 {[%emt 0:00:12]} Qb7 {[%emt 0:00:04]} 23. Rd3 {[%emt 0:00:08]} Qc7 {[%emt 0:00:08]} 24. f5 {[%emt 0:00:05]} h4 {[%emt 0:00:09]} 25. fxe6 {[%emt 0:00:10]} fxe6 {[%emt 0:00:02]} 26. Qg4 {[%emt 0:00:35]} Kf7 {[%emt 0:00:08]} 27. Rxf6+ {[%emt 0:00:07]} Kxf6 {[%emt 0:00:06]} 28. Rf3+ {[%emt 0:00:01]} 1-0